Workbook

Sheet DivineSenseConfig
A1: ID | B1: QualityBonusChance | C1: exp | D1: MaxNum
A2: int | B2: float[] | C2: int | D2: int | G2: 500 | H2: 750 | I2: 1500 | J2: 3000 | K2: 5000
G3: 白 | H3: 绿 | I3: 蓝 | J3: 紫 | K3: 橙 | L3: 红
A4: 等级 | B4: 权重 | C4: 经验 | D4: 同时最大存在神识数量 | E4: 升级数量 | G4: 品质1 | H4: 品质2 | I4: 品质3 | J4: 品质4 | K4: 品质5 | L4: 品质6 | AC4: 主线数量 | AD4: 主线 | AE4: 自动回复 | AF4: 资源事件 | AG4: 商店（广告）
A5: 1 | B5: =_xlfn.TEXTJOIN(";",1,G5:L5) -> 700;200;100;0;0;0 | C5: =E5*100 -> 500 | D5: 2 | E5: 5 | F5: =SUM(E$5:E5) -> 5 | G5: =1000-SUM(H5:L5) -> 700 | H5: =I5*2 -> 200 | I5: 100 | J5: 0 | K5: 0 | L5: 0 | N5: =G5/1000*G$2 -> 350 | O5: =H5/1000*H$2 -> 150 | P5: =I5/1000*I$2 -> 150 | Q5: =J5/1000*J$2 -> 0 | R5: =K5/1000*K$2 -> 0 | T5: =SUM(N5:R5) -> 650 | U5: =T5*20 -> 13000 | AA5: 1 | AB5: 60 | AC5: 17 | AD5: 39 | AE5: 6 | AF5: 6 | AG5: 8 | AH5: =SUM(AD5:AG5) -> 59
A6: 2 | B6: =_xlfn.TEXTJOIN(";",1,G6:L6) -> 676;216;108;0;0;0 | C6: =E6*100 -> 500 | D6: 3 | E6: 5 | F6: =SUM(E$5:E6) -> 10 | G6: =1000-SUM(H6:L6) -> 676 | H6: =I6*2 -> 216 | I6: 108 | J6: 0 | K6: 0 | L6: 0 | N6: 338 | O6: 162 | P6: 162 | Q6: 0 | R6: 0 | T6: =SUM(N6:R6) -> 662 | U6: =T6*20 -> 13240 | AA6: 2 | AB6: 90 | AC6: 6 | AD6: 10 | AE6: 6 | AF6: 6 | AG6: 8 | AH6: 30
A7: 3 | B7: 649;234;117;0;0;0 | C7: 500 | D7: 4 | E7: 5 | F7: =SUM(E$5:E7) -> 15 | G7: 649 | H7: 234 | I7: 117 | J7: 0 | K7: 0 | L7: 0 | N7: 324.5 | O7: 175.5 | P7: 175.5 | Q7: 0 | R7: 0 | T7: 675.5 | U7: 13510 | AA7: 3 | AB7: 120 | AC7: 3 | AD7: 10 | AE7: 6 | AF7: 6 | AG7: 8 | AH7: 30
A8: 4 | B8: 622;252;126;0;0;0 | C8: 500 | D8: 5 | E8: 5 | F8: =SUM(E$5:E8) -> 20 | G8: 622 | H8: 252 | I8: 126 | J8: 0 | K8: 0 | L8: 0 | N8: 311 | O8: 189 | P8: 189 | Q8: 0 | R8: 0 | T8: 689 | U8: 13780 | AA8: 4 | AB8: 150 | AC8: 4 | AD8: 10 | AE8: 6 | AF8: 6 | AG8: 8 | AH8: 30
A9: 5 | B9: 595;270;135;0;0;0 | C9: 1000 | D9: 6 | E9: 10 | F9: =SUM(E$5:E9) -> 30 | G9: 595 | H9: 270 | I9: 135 | J9: 0 | K9: 0 | L9: 0 | N9: 297.5 | O9: 202.5 | P9: 202.5 | Q9: 0 | R9: 0 | T9: 702.5 | U9: 14050 | AA9: 5 | AB9: 180 | AC9: 1 | AD9: 0 | AE9: 6 | AF9: 6 | AG9: 8 | AH9: 20
A10: 6 | B10: 550;288;144;18;0;0 | C10: 1000 | D10: 6 | E10: 10 | F10: =SUM(E$5:E10) -> 40 | G10: 550 | H10: 288 | I10: 144 | J10: 18 | K10: 0 | L10: 0 | N10: 275 | O10: 216 | P10: 216 | Q10: 54 | R10: 0 | T10: 761 | U10: 15220 | AA10: 6 | AB10: 210 | AD10: 0 | AE10: 6 | AF10: 6 | AG10: 8 | AH10: 20
A11: 7 | B11: 515;306;153;26;0;0 | C11: 1000 | D11: 6 | E11: 10 | F11: =SUM(E$5:E11) -> 50 | G11: 515 | H11: 306 | I11: 153 | J11: 26 | K11: 0 | L11: 0 | N11: 257.5 | O11: 229.5 | P11: 229.5 | Q11: 78 | R11: 0 | T11: 794.5 | U11: 15890 | AA11: 7 | AB11: 240 | AD11: 0 | AE11: 6 | AF11: 6 | AG11: 8 | AH11: 20
A12: 8 | B12: 480;324;162;34;0;0 | C12: 1000 | D12: 6 | E12: 10 | F12: =SUM(E$5:E12) -> 60 | G12: 480 | H12: 324 | I12: 162 | J12: 34 | K12: 0 | L12: 0 | N12: 240 | O12: 243 | P12: 243 | Q12: 102 | R12: 0 | T12: 828 | U12: 16560 | AA12: 8 | AB12: 270 | AD12: 0 | AE12: 6 | AF12: 6 | AG12: 8 | AH12: 20
A13: 9 | B13: 445;342;171;42;0;0 | C13: 2000 | D13: 6 | E13: 20 | F13: =SUM(E$5:E13) -> 80 | G13: 445 | H13: 342 | I13: 171 | J13: 42 | K13: 0 | L13: 0 | N13: 222.5 | O13: 256.5 | P13: 256.5 | Q13: 126 | R13: 0 | T13: 861.5 | U13: 17230 | AA13: 9 | AB13: 300 | AD13: 0 | AE13: 6 | AF13: 6 | AG13: 8 | AH13: 20
A14: 10 | B14: 410;360;180;50;0;0 | C14: 2000 | D14: 6 | E14: 20 | F14: =SUM(E$5:E14) -> 100 | G14: 410 | H14: 360 | I14: 180 | J14: 50 | K14: 0 | L14: 0 | N14: 205 | O14: 270 | P14: 270 | Q14: 150 | R14: 0 | T14: 895 | U14: 17900
A15: 11 | B15: 369;378;189;58;6;0 | C15: 2000 | D15: 6 | E15: 20 | F15: =SUM(E$5:E15) -> 120 | G15: 369 | H15: 378 | I15: 189 | J15: 58 | K15: 6 | L15: 0 | N15: 184.5 | O15: 283.5 | P15: 283.5 | Q15: 174 | R15: 30 | T15: 955.5 | U15: 19110
A16: 12 | B16: 328;396;198;66;12;0 | C16: 2000 | D16: 6 | E16: 20 | F16: =SUM(E$5:E16) -> 140 | G16: 328 | H16: 396 | I16: 198 | J16: 66 | K16: 12 | L16: 0 | N16: 164 | O16: 297 | P16: 297 | Q16: 198 | R16: 60 | T16: 1016 | U16: 20320
A17: 13 | B17: 287;414;207;74;18;0 | C17: 2000 | D17: 6 | E17: 20 | F17: =SUM(E$5:E17) -> 160 | G17: 287 | H17: 414 | I17: 207 | J17: 74 | K17: 18 | L17: 0 | N17: 143.5 | O17: 310.5 | P17: 310.5 | Q17: 222 | R17: 90 | T17: 1076.5 | U17: 21530
A18: 14 | B18: 246;432;216;82;24;0 | C18: 2000 | D18: 6 | E18: 20 | F18: =SUM(E$5:E18) -> 180 | G18: 246 | H18: 432 | I18: 216 | J18: 82 | K18: 24 | L18: 0 | N18: 123 | O18: 324 | P18: 324 | Q18: 246 | R18: 120 | T18: 1137 | U18: 22740
A19: 15 | B19: 205;450;225;90;30;0 | C19: 2000 | D19: 6 | E19: 20 | F19: =SUM(E$5:E19) -> 200 | G19: 205 | H19: 450 | I19: 225 | J19: 90 | K19: 30 | L19: 0 | N19: 102.5 | O19: 337.5 | P19: 337.5 | Q19: 270 | R19: 150 | T19: 1197.5 | U19: 23950
A20: 16 | B20: 164;468;234;98;36;0 | C20: 2000 | D20: 6 | E20: 20 | F20: =SUM(E$5:E20) -> 220 | G20: 164 | H20: 468 | I20: 234 | J20: 98 | K20: 36 | L20: 0 | N20: 82 | O20: 351 | P20: 351 | Q20: 294 | R20: 180 | T20: 1258 | U20: 25160
A21: 17 | B21: 123;486;243;106;42;0 | C21: 2000 | D21: 6 | E21: 20 | F21: =SUM(E$5:E21) -> 240 | G21: 123 | H21: 486 | I21: 243 | J21: 106 | K21: 42 | L21: 0 | N21: 61.5 | O21: 364.5 | P21: 364.5 | Q21: 318 | R21: 210 | T21: 1318.5 | U21: 26370
A22: 18 | B22: 82;504;252;114;48;0 | C22: 2000 | D22: 6 | E22: 20 | F22: =SUM(E$5:E22) -> 260 | G22: 82 | H22: 504 | I22: 252 | J22: 114 | K22: 48 | L22: 0 | N22: 41 | O22: 378 | P22: 378 | Q22: 342 | R22: 240 | T22: 1379 | U22: 27580
A23: 19 | B23: 41;522;261;122;54;0 | C23: 2000 | D23: 6 | E23: 20 | F23: =SUM(E$5:E23) -> 280 | G23: 41 | H23: 522 | I23: 261 | J23: 122 | K23: 54 | L23: 0 | N23: 20.5 | O23: 391.5 | P23: 391.5 | Q23: 366 | R23: 270 | T23: 1439.5 | U23: 28790
A24: 20 | B24: 0;540;270;130;60;0 | C24: 1000000 | D24: 6 | E24: 10000 | F24: =SUM(E$5:E24) -> 10280 | G24: 0 | H24: 540 | I24: 270 | J24: 130 | K24: 60 | L24: 0 | N24: =G24/1000*G$2 -> 0 | O24: =H24/1000*H$2 -> 405 | P24: 405 | Q24: 390 | R24: 300 | T24: 1500 | U24: 30000
